[Event "Titled Tuesday Blitz March 29 Late 2022"]
[White "Jaferian, Koosha"]
[Black "Cervantes Landeiro, Thalia"]
[WhiteFideId "12507440"]
[BlackFideId "3520498"]
[WhiteElo "2030"]
[BlackElo "2021"]
[Result "1-0"]
[Round "11"]
[TimeControl "180+1"]
[Date "2022.03.29"]
[WhiteClock "0:00:07"]
[BlackClock "0:00:04"]

1. Nf3 {[%clk 0:02:59]}  d5 {[%clk 0:02:59]} 2. b3 {[%clk 0:03:00]}  Nf6 {[%clk 0:02:58]} 3. Bb2 {[%clk 0:03:00]}  g6 {[%clk 0:02:59]} 4. c4 {[%clk 0:02:59]}  Bg7 {[%clk 0:02:54]} 5. g3 {[%clk 0:02:59]}  O-O {[%clk 0:02:53]} 6. Bg2 {[%clk 0:02:59]}  c6 {[%clk 0:02:48]} 7. d4 {[%clk 0:02:57]}  Ne4 {[%clk 0:02:39]} 8. O-O {[%clk 0:02:56]}  Nd7 {[%clk 0:02:38]} 9. e3 {[%clk 0:02:57]}  Ndf6 {[%clk 0:02:38]} 10. Nbd2 {[%clk 0:02:56]}  Bf5 {[%clk 0:02:31]} 11. Qe2 {[%clk 0:02:56]}  Qd7 {[%clk 0:02:22]} 12. Ne5 {[%clk 0:02:54]}  Qe6 {[%clk 0:02:21]} 13. f3 {[%clk 0:02:43]}  Nxd2 {[%clk 0:02:16]} 14. Qxd2 {[%clk 0:02:44]}  h5 {[%clk 0:02:10]} 15. Rae1 {[%clk 0:02:36]}  Bh3 {[%clk 0:01:44]} 16. Qc2 {[%clk 0:02:20]}  Bxg2 {[%clk 0:01:42]} 17. Kxg2 {[%clk 0:02:20]}  Nd7 {[%clk 0:01:30]} 18. Nd3 {[%clk 0:02:19]}  Nf6 {[%clk 0:01:10]} 19. Nf4 {[%clk 0:02:19]}  Qd7 {[%clk 0:01:09]} 20. Rd1 {[%clk 0:02:01]}  Rac8 {[%clk 0:01:08]} 21. Rfe1 {[%clk 0:02:01]}  Rfd8 {[%clk 0:01:06]} 22. Nd3 {[%clk 0:01:59]}  b6 {[%clk 0:01:03]} 23. Qf2 {[%clk 0:01:53]}  Qf5 {[%clk 0:01:01]} 24. Ne5 {[%clk 0:01:43]}  Nd7 {[%clk 0:00:59]} 25. Nxd7 {[%clk 0:01:37]}  Rxd7 {[%clk 0:00:58]} 26. Rd2 {[%clk 0:01:26]}  e5 {[%clk 0:00:47]} 27. dxe5 {[%clk 0:01:26]}  Bxe5 {[%clk 0:00:48]} 28. cxd5 {[%clk 0:01:23]}  cxd5 {[%clk 0:00:46]} 29. Bxe5 {[%clk 0:01:22]}  Qxe5 {[%clk 0:00:46]} 30. Red1 {[%clk 0:01:23]}  Rcd8 {[%clk 0:00:45]} 31. Rd4 {[%clk 0:01:22]}  Re7 {[%clk 0:00:43]} 32. R1d3 {[%clk 0:01:22]}  Red7 {[%clk 0:00:43]} 33. Qd2 {[%clk 0:01:22]}  f5 {[%clk 0:00:31]} 34. e4 {[%clk 0:00:55]}  fxe4 {[%clk 0:00:19]} 35. fxe4 {[%clk 0:00:55]}  h4 {[%clk 0:00:15]} 36. exd5 {[%clk 0:00:47]}  Qf5 {[%clk 0:00:11]} 37. Rxh4 {[%clk 0:00:30]}  Rxd5 {[%clk 0:00:09]} 38. Rxd5 {[%clk 0:00:31]}  Rxd5 {[%clk 0:00:09]} 39. Qe2 {[%clk 0:00:31]}  Re5 {[%clk 0:00:08]} 40. Qf2 {[%clk 0:00:26]}  Qe6 {[%clk 0:00:06]} 41. Qf4 {[%clk 0:00:16]}  Re2+ {[%clk 0:00:06]} 42. Kf3 {[%clk 0:00:16]}  Re1 {[%clk 0:00:05]} 43. Qb8+ {[%clk 0:00:16]}  Qe8 {[%clk 0:00:05]} 44. Qxe8+ {[%clk 0:00:14]}  Rxe8 {[%clk 0:00:06]} 45. Re4 {[%clk 0:00:12]}  Rf8+ {[%clk 0:00:06]} 46. Ke3 {[%clk 0:00:12]}  Rf7 {[%clk 0:00:05]} 47. h4 {[%clk 0:00:09]}  Kg7 {[%clk 0:00:05]} 48. g4 {[%clk 0:00:09]}  Rc7 {[%clk 0:00:04]} 49. Rd4 {[%clk 0:00:05]}  Kf6 {[%clk 0:00:03]} 50. Kf4 {[%clk 0:00:04]}  Rc1 {[%clk 0:00:02]} 51. Rd6+ {[%clk 0:00:04]}  Ke7 {[%clk 0:00:02]} 52. Rxg6 {[%clk 0:00:04]}  Rf1+ {[%clk 0:00:03]} 53. Kg5 {[%clk 0:00:05]}  Ra1 {[%clk 0:00:03]} 54. Rg7+ {[%clk 0:00:04]}  Ke6 {[%clk 0:00:03]} 55. Rxa7 {[%clk 0:00:05]}  b5 {[%clk 0:00:04]} 56. h5 {[%clk 0:00:05]}  Kd5 {[%clk 0:00:04]} 57. h6 {[%clk 0:00:06]}  Rh1 {[%clk 0:00:03]} 58. h7 {[%clk 0:00:06]}  Kc5 {[%clk 0:00:03]} 59. Kg6 {[%clk 0:00:07]}  Kb4 {[%clk 0:00:04]} 60. Kg7 {[%clk 0:00:06]}  Kc3 {[%clk 0:00:03]} 61. h8=Q {[%clk 0:00:07]}  b4 {[%clk 0:00:04]} 62. Qxh1 {[%clk 0:00:07]} 1-0


[Site "https://www.chess.com"]

[Event "Titled Tuesday Blitz March 29 Late 2022"]
[White "Jarocka, Liwia"]
[Black "Romanchuk, Viktor"]
[WhiteFideId "21807558"]
[BlackFideId "14109271"]
[WhiteElo "1896"]
[BlackElo "2242"]
[Result "0-1"]
[Round "11"]
[TimeControl "180+1"]
[Date "2022.03.29"]
[WhiteClock "0:01:07"]
[BlackClock "0:00:47"]

1. e4 {[%clk 0:03:00]}  e6 {[%clk 0:02:59]} 2. d4 {[%clk 0:02:55]}  d5 {[%clk 0:02:59]} 3. e5 {[%clk 0:02:54]}  c5 {[%clk 0:02:59]} 4. c3 {[%clk 0:02:54]}  Nc6 {[%clk 0:02:59]} 5. Nf3 {[%clk 0:02:53]}  Bd7 {[%clk 0:02:59]} 6. Be2 {[%clk 0:02:47]}  f6 {[%clk 0:02:59]} 7. exf6 {[%clk 0:02:46]}  Nxf6 {[%clk 0:02:59]} 8. O-O {[%clk 0:02:47]}  Qb6 {[%clk 0:02:59]} 9. Nbd2 {[%clk 0:02:46]}  cxd4 {[%clk 0:02:53]} 10. Nb3 {[%clk 0:02:46]}  dxc3 {[%clk 0:02:52]} 11. bxc3 {[%clk 0:02:47]}  Bd6 {[%clk 0:02:41]} 12. c4 {[%clk 0:02:46]}  O-O {[%clk 0:02:38]} 13. Bb2 {[%clk 0:02:46]}  Qc7 {[%clk 0:02:20]} 14. Bxf6 {[%clk 0:02:41]}  Rxf6 {[%clk 0:02:20]} 15. cxd5 {[%clk 0:02:41]}  exd5 {[%clk 0:02:21]} 16. Qxd5+ {[%clk 0:02:41]}  Be6 {[%clk 0:02:21]} 17. Qd2 {[%clk 0:02:40]}  Rd8 {[%clk 0:02:13]} 18. Qc2 {[%clk 0:02:40]}  Nb4 {[%clk 0:01:59]} 19. Qxc7 {[%clk 0:02:38]}  Bxc7 {[%clk 0:02:00]} 20. Nc5 {[%clk 0:02:35]}  Bc8 {[%clk 0:01:58]} 21. a3 {[%clk 0:02:32]}  Nd5 {[%clk 0:01:55]} 22. Rac1 {[%clk 0:02:27]}  Bb6 {[%clk 0:01:51]} 23. Rfd1 {[%clk 0:02:22]}  Kf8 {[%clk 0:01:46]} 24. Nd4 {[%clk 0:02:03]}  Nf4 {[%clk 0:01:36]} 25. Bf3 {[%clk 0:02:03]}  Rfd6 {[%clk 0:01:36]} 26. Ndb3 {[%clk 0:01:55]}  Rxd1+ {[%clk 0:01:28]} 27. Rxd1 {[%clk 0:01:56]}  Rxd1+ {[%clk 0:01:27]} 28. Bxd1 {[%clk 0:01:57]}  Ke7 {[%clk 0:01:24]} 29. g3 {[%clk 0:01:57]}  Ne6 {[%clk 0:01:22]} 30. Nd3 {[%clk 0:01:51]}  Nd4 {[%clk 0:01:16]} 31. Nxd4 {[%clk 0:01:49]}  Bxd4 {[%clk 0:01:17]} 32. Kf1 {[%clk 0:01:48]}  Kd6 {[%clk 0:01:13]} 33. Bf3 {[%clk 0:01:44]}  b5 {[%clk 0:01:12]} 34. Ke2 {[%clk 0:01:43]}  Be6 {[%clk 0:01:11]} 35. Kd2 {[%clk 0:01:40]}  Bc4 {[%clk 0:01:10]} 36. Be4 {[%clk 0:01:41]}  h6 {[%clk 0:01:10]} 37. f4 {[%clk 0:01:40]}  Bg1 {[%clk 0:01:06]} 38. Ne5 {[%clk 0:01:30]}  Bxh2 {[%clk 0:01:03]} 39. Ke3 {[%clk 0:01:09]}  Bxg3 {[%clk 0:00:55]} 40. Nf3 {[%clk 0:01:08]}  Kc5 {[%clk 0:00:50]} 41. Nd4 {[%clk 0:01:07]}  Bf2+ {[%clk 0:00:47]} 0-1


[Site "https://www.chess.com"]

[Event "Titled Tuesday Blitz March 29 Late 2022"]
[White "Kozina, Anastasia"]
[Black "Fathy, Elameir"]
[WhiteFideId "24174017"]
[BlackFideId "10600396"]
[WhiteElo "1993"]
[BlackElo "2311"]
[Result "1/2-1/2"]
[Round "11"]
[TimeControl "180+1"]
[Date "2022.03.30"]
[WhiteClock "0:00:10"]
[BlackClock "0:00:02"]

1. a3 {[%clk 0:03:00]}  d5 {[%clk 0:02:52]} 2. b4 {[%clk 0:03:00]}  Nf6 {[%clk 0:02:47]} 3. Bb2 {[%clk 0:03:01]}  Bf5 {[%clk 0:02:47]} 4. Nf3 {[%clk 0:02:59]}  e6 {[%clk 0:02:47]} 5. e3 {[%clk 0:02:59]}  c6 {[%clk 0:02:47]} 6. d4 {[%clk 0:02:57]}  Be7 {[%clk 0:02:46]} 7. Bd3 {[%clk 0:02:57]}  O-O {[%clk 0:02:45]} 8. O-O {[%clk 0:02:57]}  Nbd7 {[%clk 0:02:44]} 9. Nbd2 {[%clk 0:02:52]}  a5 {[%clk 0:02:43]} 10. Bc3 {[%clk 0:02:39]}  a4 {[%clk 0:02:17]} 11. Re1 {[%clk 0:02:22]}  b5 {[%clk 0:02:06]} 12. Nf1 {[%clk 0:02:15]}  Ne4 {[%clk 0:02:02]} 13. Bb2 {[%clk 0:02:03]}  Bd6 {[%clk 0:01:57]} 14. Ng3 {[%clk 0:02:00]}  Nxg3 {[%clk 0:01:57]} 15. hxg3 {[%clk 0:01:59]}  Nf6 {[%clk 0:01:45]} 16. Nh4 {[%clk 0:01:48]}  Bg6 {[%clk 0:01:39]} 17. Nxg6 {[%clk 0:01:38]}  hxg6 {[%clk 0:01:40]} 18. e4 {[%clk 0:01:38]}  dxe4 {[%clk 0:01:40]} 19. Bxe4 {[%clk 0:01:39]}  Nd5 {[%clk 0:01:40]} 20. Qf3 {[%clk 0:01:33]}  Qf6 {[%clk 0:01:21]} 21. Rac1 {[%clk 0:01:25]}  Qxf3 {[%clk 0:01:02]} 22. Bxf3 {[%clk 0:01:26]}  Rac8 {[%clk 0:00:58]} 23. c4 {[%clk 0:01:25]}  Ne7 {[%clk 0:00:49]} 24. Rc2 {[%clk 0:01:00]}  g5 {[%clk 0:00:43]} 25. Rec1 {[%clk 0:00:57]}  f5 {[%clk 0:00:31]} 26. cxb5 {[%clk 0:00:55]}  cxb5 {[%clk 0:00:31]} 27. Rxc8 {[%clk 0:00:52]}  Rxc8 {[%clk 0:00:32]} 28. Rxc8+ {[%clk 0:00:51]}  Nxc8 {[%clk 0:00:33]} 29. Bc6 {[%clk 0:00:44]}  Na7 {[%clk 0:00:32]} 30. Bb7 {[%clk 0:00:39]}  Kf7 {[%clk 0:00:26]} 31. Kf1 {[%clk 0:00:32]}  Ke7 {[%clk 0:00:25]} 32. d5 {[%clk 0:00:20]}  e5 {[%clk 0:00:25]} 33. f4 {[%clk 0:00:20]}  gxf4 {[%clk 0:00:20]} 34. gxf4 {[%clk 0:00:21]}  Kf6 {[%clk 0:00:20]} 35. Ke2 {[%clk 0:00:18]}  g5 {[%clk 0:00:17]} 36. fxe5+ {[%clk 0:00:17]}  Bxe5 {[%clk 0:00:17]} 37. Bxe5+ {[%clk 0:00:17]}  Kxe5 {[%clk 0:00:18]} 38. Ke3 {[%clk 0:00:17]}  Kd6 {[%clk 0:00:17]} 39. Kd4 {[%clk 0:00:17]}  Kc7 {[%clk 0:00:15]} 40. Bc6 {[%clk 0:00:15]}  Kd6 {[%clk 0:00:13]} 41. Be8 {[%clk 0:00:14]}  Nc8 {[%clk 0:00:11]} 42. Bxb5 {[%clk 0:00:14]}  Nb6 {[%clk 0:00:11]} 43. Bc6 {[%clk 0:00:14]}  g4 {[%clk 0:00:10]} 44. Ke3 {[%clk 0:00:13]}  Nxd5+ {[%clk 0:00:08]} 45. Bxd5 {[%clk 0:00:12]}  Kxd5 {[%clk 0:00:09]} 46. Kf4 {[%clk 0:00:12]}  Ke6 {[%clk 0:00:09]} 47. b5 {[%clk 0:00:11]}  Kd6 {[%clk 0:00:08]} 48. Kxf5 {[%clk 0:00:12]}  Kc5 {[%clk 0:00:08]} 49. Kxg4 {[%clk 0:00:12]}  Kxb5 {[%clk 0:00:09]} 50. Kf4 {[%clk 0:00:13]}  Kc4 {[%clk 0:00:10]} 51. Ke3 {[%clk 0:00:13]}  Kb3 {[%clk 0:00:11]} 52. Kd3 {[%clk 0:00:13]}  Kxa3 {[%clk 0:00:08]} 53. Kc3 {[%clk 0:00:13]}  Ka2 {[%clk 0:00:09]} 54. Kc2 {[%clk 0:00:12]}  a3 {[%clk 0:00:01]} 55. g4 {[%clk 0:00:12]}  Ka1 {[%clk 0:00:02]} 56. g5 {[%clk 0:00:12]}  a2 {[%clk 0:00:02]} 57. g6 {[%clk 0:00:10]} 1/2-1/2


[Site "https://www.chess.com"]

[Event "Titled Tuesday Blitz March 29 Late 2022"]
[White "Le Goff, Ronan"]
[Black "Terrieux, Kevin"]
[WhiteFideId "612073"]
[BlackFideId "622591"]
[WhiteElo "2276"]
[BlackElo "2482"]
[Result "0-1"]
[Round "11"]
[TimeControl "180+1"]
[Date "2022.03.29"]
[WhiteClock "0:00:01"]
[BlackClock "0:00:05"]

1. d4 {[%clk 0:03:00]}  Nf6 {[%clk 0:02:58]} 2. Nf3 {[%clk 0:02:58]}  d5 {[%clk 0:02:54]} 3. g3 {[%clk 0:02:57]}  c5 {[%clk 0:02:52]} 4. Bg2 {[%clk 0:02:54]}  cxd4 {[%clk 0:02:51]} 5. O-O {[%clk 0:02:54]}  h6 {[%clk 0:02:38]} 6. b3 {[%clk 0:02:26]}  Nc6 {[%clk 0:02:27]} 7. Nxd4 {[%clk 0:02:20]}  e6 {[%clk 0:02:21]} 8. Bb2 {[%clk 0:02:17]}  Be7 {[%clk 0:02:20]} 9. c4 {[%clk 0:02:12]}  O-O {[%clk 0:02:18]} 10. Nd2 {[%clk 0:01:33]}  Bd7 {[%clk 0:02:15]} 11. Rc1 {[%clk 0:01:29]}  Rc8 {[%clk 0:02:10]} 12. N2f3 {[%clk 0:01:26]}  Qb6 {[%clk 0:01:56]} 13. cxd5 {[%clk 0:01:15]}  Nxd5 {[%clk 0:01:47]} 14. Nxc6 {[%clk 0:01:04]}  Bxc6 {[%clk 0:01:44]} 15. Ne5 {[%clk 0:01:01]}  Bf6 {[%clk 0:01:42]} 16. e4 {[%clk 0:00:26]}  Nb4 {[%clk 0:01:11]} 17. Nxc6 {[%clk 0:00:20]}  Nxc6 {[%clk 0:01:00]} 18. Bxf6 {[%clk 0:00:19]}  gxf6 {[%clk 0:01:01]} 19. Qg4+ {[%clk 0:00:12]}  Kh7 {[%clk 0:00:58]} 20. Qf4 {[%clk 0:00:11]}  Qd4 {[%clk 0:00:54]} 21. Rfd1 {[%clk 0:00:10]}  Qe5 {[%clk 0:00:53]} 22. Rd7 {[%clk 0:00:09]}  Qxf4 {[%clk 0:00:43]} 23. gxf4 {[%clk 0:00:10]}  Rb8 {[%clk 0:00:43]} 24. e5 {[%clk 0:00:09]}  fxe5 {[%clk 0:00:42]} 25. Bxc6 {[%clk 0:00:09]}  bxc6 {[%clk 0:00:42]} 26. fxe5 {[%clk 0:00:09]}  Rb5 {[%clk 0:00:37]} 27. Rxc6 {[%clk 0:00:09]}  Rxe5 {[%clk 0:00:37]} 28. Rxa7 {[%clk 0:00:08]}  Rf5 {[%clk 0:00:32]} 29. Rc3 {[%clk 0:00:07]}  Rd8 {[%clk 0:00:30]} 30. Rcc7 {[%clk 0:00:05]}  Kg6 {[%clk 0:00:30]} 31. Rc3 {[%clk 0:00:04]}  Rd2 {[%clk 0:00:28]} 32. Rg3+ {[%clk 0:00:04]}  Kf6 {[%clk 0:00:28]} 33. Ra4 {[%clk 0:00:03]}  Rfxf2 {[%clk 0:00:27]} 34. Rh4 {[%clk 0:00:01]}  Rxa2 {[%clk 0:00:24]} 35. Rxh6+ {[%clk 0:00:02]}  Ke7 {[%clk 0:00:24]} 36. Rh7 {[%clk 0:00:02]}  Rfb2 {[%clk 0:00:24]} 37. Kh1 {[%clk 0:00:03]}  Rb1+ {[%clk 0:00:23]} 38. Rg1 {[%clk 0:00:03]}  Rxb3 {[%clk 0:00:23]} 39. Rf1 {[%clk 0:00:02]}  Rbb2 {[%clk 0:00:21]} 40. Rfxf7+ {[%clk 0:00:02]}  Kd6 {[%clk 0:00:21]} 41. Rd7+ {[%clk 0:00:03]}  Ke5 {[%clk 0:00:21]} 42. Rh5+ {[%clk 0:00:03]}  Kf6 {[%clk 0:00:21]} 43. Rd1 {[%clk 0:00:03]}  e5 {[%clk 0:00:21]} 44. Rf1+ {[%clk 0:00:03]}  Ke6 {[%clk 0:00:21]} 45. Re1 {[%clk 0:00:03]}  Ra5 {[%clk 0:00:19]} 46. Rh6+ {[%clk 0:00:04]}  Kd5 {[%clk 0:00:19]} 47. Rh5 {[%clk 0:00:04]}  Kd4 {[%clk 0:00:15]} 48. Rh4+ {[%clk 0:00:04]}  Kd3 {[%clk 0:00:15]} 49. Rh3+ {[%clk 0:00:04]}  Kd4 {[%clk 0:00:08]} 50. Rh4+ {[%clk 0:00:04]}  Kc3 {[%clk 0:00:08]} 51. Rh5 {[%clk 0:00:03]}  Rbb5 {[%clk 0:00:07]} 52. Rg5 {[%clk 0:00:02]}  Kd2 {[%clk 0:00:05]} 53. Rf1 {[%clk 0:00:01]}  e4 {[%clk 0:00:05]} 0-1


[Site "https://www.chess.com"]

[Event "Titled Tuesday Blitz March 29 Late 2022"]
[White "Martin Duque, Jesus"]
[Black "Korchmar, Vasiliy"]
[WhiteFideId "2208954"]
[BlackFideId "24131750"]
[WhiteElo "2243"]
[BlackElo "2370"]
[Result "0-1"]
[Round "11"]
[TimeControl "180+1"]
[Date "2022.03.29"]
[WhiteClock "0:00:14"]
[BlackClock "0:00:04"]

1. Nf3 {[%clk 0:02:58]}  d5 {[%clk 0:02:59]} 2. b3 {[%clk 0:02:58]}  Bf5 {[%clk 0:02:56]} 3. Bb2 {[%clk 0:02:58]}  e6 {[%clk 0:02:57]} 4. g3 {[%clk 0:02:58]}  Nf6 {[%clk 0:02:57]} 5. Bg2 {[%clk 0:02:59]}  Be7 {[%clk 0:02:57]} 6. O-O {[%clk 0:03:00]}  O-O {[%clk 0:02:56]} 7. d3 {[%clk 0:03:01]}  h6 {[%clk 0:02:57]} 8. Nbd2 {[%clk 0:03:01]}  Bh7 {[%clk 0:02:57]} 9. Re1 {[%clk 0:03:02]}  a5 {[%clk 0:02:56]} 10. a4 {[%clk 0:03:02]}  Na6 {[%clk 0:02:54]} 11. e4 {[%clk 0:03:02]}  Nb4 {[%clk 0:02:53]} 12. Re2 {[%clk 0:03:03]}  c6 {[%clk 0:02:44]} 13. h4 {[%clk 0:02:59]}  Qb6 {[%clk 0:02:35]} 14. e5 {[%clk 0:02:58]}  Ng4 {[%clk 0:02:28]} 15. Nd4 {[%clk 0:02:44]}  Bc5 {[%clk 0:02:22]} 16. N2f3 {[%clk 0:02:43]}  Bg6 {[%clk 0:02:16]} 17. Qd2 {[%clk 0:02:32]}  Rae8 {[%clk 0:02:02]} 18. Bh3 {[%clk 0:02:23]}  h5 {[%clk 0:01:56]} 19. Qg5 {[%clk 0:02:17]}  Be7 {[%clk 0:01:37]} 20. Qf4 {[%clk 0:02:17]}  f6 {[%clk 0:01:26]} 21. Bxg4 {[%clk 0:02:17]}  fxe5 {[%clk 0:01:20]} 22. Bxe6+ {[%clk 0:02:17]}  Kh7 {[%clk 0:01:18]} 23. Qxe5 {[%clk 0:02:14]}  Bf6 {[%clk 0:01:17]} 24. Qf4 {[%clk 0:01:44]}  c5 {[%clk 0:01:15]} 25. Bf5 {[%clk 0:01:32]}  Bxd4 {[%clk 0:00:43]} 26. Rxe8 {[%clk 0:01:31]}  Rxf5 {[%clk 0:00:39]} 27. Ng5+ {[%clk 0:01:29]}  Rxg5 {[%clk 0:00:35]} 28. Qxg5 {[%clk 0:00:56]}  Bxb2 {[%clk 0:00:33]} 29. Rae1 {[%clk 0:00:46]}  Bf6 {[%clk 0:00:24]} 30. Qd2 {[%clk 0:00:38]}  Bxe8 {[%clk 0:00:21]} 31. Rxe8 {[%clk 0:00:39]}  Qc6 {[%clk 0:00:18]} 32. Qe2 {[%clk 0:00:39]}  Kg6 {[%clk 0:00:15]} 33. Re6 {[%clk 0:00:40]}  Qd7 {[%clk 0:00:15]} 34. f4 {[%clk 0:00:35]}  Nxc2 {[%clk 0:00:10]} 35. Rxf6+ {[%clk 0:00:25]}  gxf6 {[%clk 0:00:10]} 36. Qxc2 {[%clk 0:00:25]}  Qg4 {[%clk 0:00:09]} 37. Kf2 {[%clk 0:00:24]}  b6 {[%clk 0:00:06]} 38. d4+ {[%clk 0:00:23]}  Qf5 {[%clk 0:00:05]} 39. Qc3 {[%clk 0:00:21]}  cxd4 {[%clk 0:00:03]} 40. Qxd4 {[%clk 0:00:20]}  Qc2+ {[%clk 0:00:03]} 41. Kg1 {[%clk 0:00:19]}  Qb1+ {[%clk 0:00:03]} 42. Kh2 {[%clk 0:00:19]}  Qc2+ {[%clk 0:00:03]} 43. Kh3 {[%clk 0:00:19]}  Qf5+ {[%clk 0:00:04]} 44. Kh2 {[%clk 0:00:19]}  Qc2+ {[%clk 0:00:03]} 45. Kh3 {[%clk 0:00:19]}  Qe4 {[%clk 0:00:04]} 46. Qd1 {[%clk 0:00:14]}  d4 {[%clk 0:00:04]} 47. Kh2 {[%clk 0:00:14]}  d3 {[%clk 0:00:04]} 48. Kg1 {[%clk 0:00:14]}  Qe3+ {[%clk 0:00:03]} 49. Kf1 {[%clk 0:00:14]}  Qxg3 {[%clk 0:00:04]} 50. Qd2 {[%clk 0:00:14]}  Qf3+ {[%clk 0:00:03]} 51. Ke1 {[%clk 0:00:14]}  Qe4+ {[%clk 0:00:02]} 52. Kd1 {[%clk 0:00:15]}  Qh1+ {[%clk 0:00:02]} 53. Qe1 {[%clk 0:00:14]}  Qxe1+ {[%clk 0:00:02]} 54. Kxe1 {[%clk 0:00:15]}  Kf5 {[%clk 0:00:03]} 55. Kd2 {[%clk 0:00:15]}  Ke4 {[%clk 0:00:03]} 56. b4 {[%clk 0:00:14]}  axb4 {[%clk 0:00:04]} 0-1


[Site "https://www.chess.com"]

[Event "Titled Tuesday Blitz March 29 Late 2022"]
[White "Martinez Alcantara, Jose Eduardo"]
[Black "Rasulov, Vugar"]
[WhiteFideId "3805662"]
[BlackFideId "13402390"]
[WhiteElo "2690"]
[BlackElo "2560"]
[Result "0-1"]
[Round "11"]
[TimeControl "180+1"]
[Date "2022.03.29"]
[WhiteClock "0:00:01"]
[BlackClock "0:00:11"]

1. c4 {[%clk 0:03:00]}  g6 {[%clk 0:02:59]} 2. g3 {[%clk 0:03:01]}  Bg7 {[%clk 0:03:00]} 3. Bg2 {[%clk 0:03:02]}  Nf6 {[%clk 0:03:00]} 4. Nc3 {[%clk 0:03:03]}  O-O {[%clk 0:03:01]} 5. d3 {[%clk 0:03:04]}  d6 {[%clk 0:02:59]} 6. e4 {[%clk 0:03:04]}  c5 {[%clk 0:02:57]} 7. Nge2 {[%clk 0:03:05]}  Nc6 {[%clk 0:02:58]} 8. O-O {[%clk 0:03:05]}  a6 {[%clk 0:02:58]} 9. h3 {[%clk 0:03:05]}  Rb8 {[%clk 0:02:59]} 10. a4 {[%clk 0:03:05]}  Nd7 {[%clk 0:02:50]} 11. Be3 {[%clk 0:03:04]}  Nd4 {[%clk 0:02:49]} 12. Rb1 {[%clk 0:02:59]}  Qa5 {[%clk 0:02:44]} 13. Nd5 {[%clk 0:02:22]}  e6 {[%clk 0:02:37]} 14. Ne7+ {[%clk 0:02:17]}  Kh8 {[%clk 0:02:37]} 15. Nxd4 {[%clk 0:02:18]}  cxd4 {[%clk 0:02:37]} 16. Bd2 {[%clk 0:02:18]}  Qd8 {[%clk 0:02:36]} 17. Nxc8 {[%clk 0:02:17]}  Rxc8 {[%clk 0:02:37]} 18. a5 {[%clk 0:02:16]}  Rb8 {[%clk 0:02:23]} 19. b4 {[%clk 0:02:16]}  f5 {[%clk 0:02:15]} 20. exf5 {[%clk 0:02:08]}  gxf5 {[%clk 0:02:16]} 21. f4 {[%clk 0:02:08]}  e5 {[%clk 0:02:14]} 22. Qh5 {[%clk 0:02:05]}  Qf6 {[%clk 0:02:06]} 23. Rbe1 {[%clk 0:02:01]}  Qg6 {[%clk 0:01:57]} 24. Qxg6 {[%clk 0:01:49]}  hxg6 {[%clk 0:01:58]} 25. Rb1 {[%clk 0:01:50]}  b6 {[%clk 0:01:50]} 26. axb6 {[%clk 0:01:34]}  Rxb6 {[%clk 0:01:51]} 27. Rfe1 {[%clk 0:01:26]}  Rfb8 {[%clk 0:01:44]} 28. Ra1 {[%clk 0:01:21]}  Re8 {[%clk 0:01:28]} 29. Ra5 {[%clk 0:01:16]}  Kh7 {[%clk 0:01:25]} 30. Bf3 {[%clk 0:01:13]}  Re7 {[%clk 0:01:10]} 31. Kg2 {[%clk 0:01:07]}  Bh6 {[%clk 0:01:07]} 32. h4 {[%clk 0:01:06]}  Nf6 {[%clk 0:01:03]} 33. Ba8 {[%clk 0:00:22]}  Re8 {[%clk 0:00:55]} 34. Bd5 {[%clk 0:00:20]}  e4 {[%clk 0:00:48]} 35. Re2 {[%clk 0:00:21]}  e3 {[%clk 0:00:40]} 36. Be1 {[%clk 0:00:21]}  Reb8 {[%clk 0:00:40]} 37. Bf3 {[%clk 0:00:20]}  Ne8 {[%clk 0:00:31]} 38. h5 {[%clk 0:00:17]}  Nc7 {[%clk 0:00:29]} 39. hxg6+ {[%clk 0:00:15]}  Kxg6 {[%clk 0:00:30]} 40. Rb2 {[%clk 0:00:09]}  Ne6 {[%clk 0:00:21]} 41. Kf1 {[%clk 0:00:08]}  Bxf4 {[%clk 0:00:18]} 42. gxf4 {[%clk 0:00:07]}  Nxf4 {[%clk 0:00:19]} 43. Bg3 {[%clk 0:00:02]}  Nxd3 {[%clk 0:00:16]} 44. Rg2 {[%clk 0:00:03]}  Rxb4 {[%clk 0:00:11]} 45. Bh4+ {[%clk 0:00:01]}  Kf7 {[%clk 0:00:10]} 46. Rxf5+ {[%clk 0:00:01]}  Ke6 {[%clk 0:00:11]} 0-1


[Site "https://www.chess.com"]